bitfinex/quotes_ETHUSD_20241106
["timestamp","ask_amount","ask_price","bid_price","bid_amount"]
[1730865318642,1.97059396,2581.2,2581.1,3.87417]
[1730865319445,1.97059396,2581.2,2581.0,3.87437]
[1730865319673,1.97059396,2581.2,2580.9,3.87452]
[1730865319838,1.97059396,2581.2,2580.7,3.87486]
[1730865320165,1.97059396,2581.0,2580.7,3.8748]
[1730865320529,1.97059396,2580.9,2580.7,3.8748]
[1730865320755,2.73879396,2580.9,2580.5,3.87514]
[1730865320926,1.97059396,2580.8,2580.3,3.87544]
[1730865321128,1.97059396,2580.8,2580.1,0.7529]
[1730865321129,1.97059396,2580.7,2580.5,3.87513]
[1730865321320,1.97059396,2580.7,2580.6,3.87503]
[1730865321525,1.97059396,2580.8,2580.7,3.87491]
[1730865321760,0.7682,2580.9,2580.5,3.87513]
[1730865321964,1.97226299,2580.7,2580.5,3.87513]
[1730865322269,1.97226299,2580.8,2580.6,3.87493]
[1730865322421,1.97226299,2580.8,2580.2,3.87564]
[1730865322625,1.97226299,2580.6,2580.2,3.87564]
[1730865322925,1.97226299,2580.6,2580.3,3.87548]
[1730865323264,1.97226299,2580.6,2580.2,3.87564]
[1730865323429,1.97226299,2580.6,2580.2,3.87556]
[1730865323937,1.97226299,2580.6,2580.2,7.75112]
[1730865324555,1.97226299,2580.5,2580.3,3.87551]
[1730865324878,1.97226299,2580.5,2580.1,3.87572]
[1730865325037,1.97226299,2580.5,2580.0,3.8759]
[1730865325038,1.97226299,2580.4,2580.0,3.8759]
[1730865325236,0.7682,2580.3,2580.0,3.8759]
[1730865325562,0.7682,2580.3,2579.8,3.87618]
[1730865325729,1.97226299,2580.2,2579.8,3.87618]
[1730865325925,1.97226299,2580.1,2579.8,3.87618]
[1730865326130,1.97226299,2580.2,2579.8,3.87618]
[1730865326353,2.87324955,2580.2,2579.8,3.87618]
[1730865326556,2.87324955,2580.2,2579.8,3.87616]
[1730865326834,1.97494003,2580.2,2579.9,3.87609]
[1730865327056,1.97494003,2580.2,2580.0,3.87594]
[1730865327276,2.74314003,2580.3,2580.0,3.87594]
[1730865327580,2.74314003,2580.3,2580.0,3.87586]
[1730865327781,2.74314003,2580.3,2580.1,3.87571]
[1730865327954,0.7682,2580.3,2580.2,3.87566]
[1730865328584,1.97494003,2580.5,2580.3,3.87551]
[1730865328760,1.97494003,2580.5,2580.4,3.87536]
[1730865329081,1.97494003,2580.8,2580.7,3.87491]
[1730865329581,2.79784003,2580.9,2580.8,3.87476]
[1730865330056,0.8229,2580.9,2580.8,3.87476]
[1730865330263,1.97494003,2581.0,2580.9,3.87461]
[1730865330587,1.9797745,2581.0,2580.9,3.87461]
[1730865330786,1.98072179,2581.0,2580.9,3.87461]
[1730865332189,3.19976615,2581.2,2580.9,3.87461]
[1730865332342,3.79704382,2581.2,2581.0,3.87442]
[1730865332952,2.37686615,2581.1,2580.8,3.87476]
[1730865333286,1.98221732,2581.0,2580.8,3.87476]
[1730865333487,1.98221732,2580.9,2580.6,3.87499]
[1730865333877,1.98221732,2580.8,2580.4,3.87525]
[1730865334194,0.8229,2580.6,2580.2,3.87555]
[1730865334340,0.8229,2580.6,2580.4,3.87527]
[1730865334548,1.98221732,2580.7,2580.6,3.87506]
[1730865334750,3.19976615,2580.9,2580.7,3.8749]
[1730865335154,3.19976615,2580.9,2580.5,3.87521]
[1730865335351,1.98283536,2580.6,2580.5,3.87521]
[1730865335550,1.98283536,2580.7,2580.6,3.87506]
[1730865335782,1.98283536,2580.7,2580.5,3.87521]
[1730865336173,1.98283536,2580.7,2580.6,3.87506]
[1730865336699,1.98725789,2580.8,2580.7,3.87491]
[1730865336852,1.98725789,2580.8,2580.6,3.87506]
[1730865337051,1.98725789,2580.8,2580.7,3.87491]
[1730865337245,3.20230243,2580.9,2580.8,3.87476]
[1730865337448,2.37940243,2580.9,2580.8,3.87476]
[1730865337683,2.37940243,2580.9,2580.3,3.87548]
[1730865337684,4.11256024,2580.9,2580.3,3.87539]
[1730865337886,1.99379768,2580.6,2580.3,7.7508]
[1730865338086,1.99379768,2580.4,2580.3,7.7508]
[1730865338288,1.99379768,2580.4,2580.1,3.87571]
[1730865338493,1.99379768,2580.3,2580.2,3.87566]
[1730865338646,1.99379768,2580.4,2580.3,3.87551]
[1730865339455,1.99379768,2580.4,2580.2,3.87566]
[1730865339456,2.39222018,2580.6,2580.4,3.87534]
[1730865340262,2.77596951,2580.8,2580.4,3.87534]
[1730865340263,2.39222018,2580.5,2580.4,3.87534]
[1730865340465,2.39222018,2580.6,2580.4,3.87534]
[1730865340989,2.39222018,2580.5,2580.3,3.87542]
[1730865341194,2.39222018,2580.6,2580.4,3.87535]
[1730865341490,2.77596951,2580.8,2580.4,3.87535]
[1730865341491,2.39222018,2580.5,2580.4,3.87535]
[1730865341693,0.23794024,2580.9,2580.5,3.87521]
[1730865341694,2.39222018,2580.6,2580.5,3.87521]
[1730865341906,2.39222018,2580.7,2580.6,3.87506]
[1730865342187,2.39150403,2580.7,2580.5,3.87521]
[1730865342399,0.8229,2581.1,2580.8,3.87462]
[1730865342400,2.77596951,2580.9,2580.8,3.87462]
[1730865342553,2.77596951,2581.0,2580.9,3.87461]
[1730865342753,2.77596951,2581.0,2580.8,3.87462]
[1730865342952,2.77596951,2580.9,2580.8,7.74929]
[1730865343187,3.27911398,2581.0,2580.9,3.87461]
[1730865343403,3.27911398,2581.0,2580.8,3.87462]
[1730865343566,4.10201398,2581.1,2580.9,3.8745]
[1730865343763,3.27911398,2581.0,2580.9,3.8745]
[1730865343982,0.8229,2581.1,2581.0,3.87446]
[1730865343983,3.27911398,2581.1,2581.0,3.87446]
[1730865344191,1.550121,2581.2,2580.9,3.8745]
[1730865344389,3.31371927,2581.0,2580.9,3.8745]
[1730865344600,3.31308813,2581.0,2580.8,3.8747]
[1730865344888,3.31087416,2581.1,2581.0,3.87446]
[1730865345249,5.41625861,2581.3,2581.0,3.87446]
[1730865345486,3.86622661,2581.2,2581.0,3.87446]
[1730865345788,2.56133086,2581.3,2581.0,3.87446]
[1730865345789,3.31071403,2581.1,2581.0,3.87446]
[1730865346021,3.31071403,2581.2,2581.1,3.87431]
[1730865346150,3.31071403,2581.2,2581.0,3.87446]
[1730865346356,3.31071403,2581.1,2581.0,7.74883]
[1730865347675,3.31071403,2581.1,2581.0,3.87437]
[1730865347992,3.86622661,2581.1,2580.9,3.87451]
[1730865348153,3.86622661,2581.2,2580.8,3.87465]
[1730865348354,3.31568027,2581.0,2580.6,0.0954401]
[1730865348597,2.80703704,2580.7,2580.6,3.87493]
[1730865348756,2.80703704,2580.8,2580.7,3.87491]
[1730865348956,3.61423704,2580.8,2580.2,0.8007]
[1730865349204,3.3164575,2580.6,2580.5,3.87521]
[1730865349880,3.86622661,2580.7,2580.3,3.87537]
[1730865350203,4.25284927,2580.6,2580.3,3.87537]
[1730865350412,3.86622661,2580.5,2580.3,3.87537]
[1730865350610,3.86622661,2580.6,2580.3,3.87537]
[1730865350979,3.86622661,2580.6,2580.0,0.09466488]
[1730865351184,3.31157767,2580.1,2580.0,3.87595]
[1730865352106,3.86622661,2580.4,2580.3,3.87551]
[1730865352808,3.86622661,2580.5,2580.3,3.87551]
[1730865353023,3.86622661,2580.5,2580.4,3.87536]
[1730865354416,3.86622661,2580.6,2580.4,3.87536]
[1730865354884,3.86622661,2580.6,2580.3,3.87551]
[1730865355088,4.33356927,2580.6,2580.3,3.87551]
[1730865355316,1.549951,2581.4,2580.9,1.3507]
[1730865355618,5.7740607,2582.0,2581.5,0.8007]
[1730865355912,0.8072,2581.9,2581.6,2.36431522]
[1730865356070,4.7991,2581.8,2580.7,4.67559]
[1730865356272,3.87347,2581.7,2580.8,3.8747]
[1730865356473,4.68034,2581.9,2580.9,3.87448]
[1730865357111,4.68034,2581.9,2580.7,4.67559]
[1730865357112,6.230247,2581.9,2580.7,4.67559]
[1730865357314,1.0103227,2581.8,2581.3,3.87389]
[1730865357488,0.8072,2581.9,2581.0,3.87446]
[1730865357924,0.8072,2581.4,2580.7,3.87479]
[1730865358289,0.8072,2581.4,2580.9,3.87458]
[1730865358521,0.8072,2581.4,2580.7,3.87491]
[1730865358822,0.8072,2581.4,2581.0,3.87438]
[1730865359327,0.8072,2581.4,2580.5,5.42664407]
[1730865359482,0.8072,2581.4,2580.9,3.87456]
[1730865359686,0.8072,2581.4,2580.6,0.54266441]
[1730865359882,0.8072,2581.4,2581.1,3.87422]
[1730865360122,0.8072,2581.4,2580.9,3.87459]
[1730865360333,0.8072,2581.4,2580.6,0.54266441]
[1730865360526,0.8072,2581.4,2581.0,3.8744]
[1730865361021,0.8072,2581.4,2580.7,3.87476]
[1730865361239,0.7847,2581.8,2580.9,6.19384407]
[1730865361395,0.7847,2581.8,2581.3,3.8739]
[1730865361730,0.7847,2581.8,2581.0,3.9519416]
[1730865361931,3.87237,2582.4,2581.6,3.87346]
[1730865362083,1.549608,2582.4,2581.7,3.87341]
[1730865362988,1.549608,2582.4,2581.5,3.87368]
[1730865363187,1.549608,2582.4,2581.7,3.8734]
[1730865363382,0.55,2582.3,2581.8,3.87323]
[1730865363607,0.2099608,2582.2,2581.7,3.8734]
[1730865364134,0.7847,2582.5,2582.0,3.87295]
[1730865364421,0.7847,2582.5,2582.1,3.87278]
[1730865364844,0.7847,2582.5,2582.2,3.87256]
[1730865365044,3.29940084,2582.3,2582.2,3.87256]
[1730865365349,3.29940084,2582.4,2582.2,3.87256]
[1730865365502,3.959281,2582.6,2582.2,3.87256]
[1730865365503,3.29940084,2582.6,2582.2,3.87256]
[1730865365898,3.29940084,2582.6,2582.4,3.87236]
[1730865366102,3.29940084,2582.7,2582.4,3.87236]
[1730865366347,3.29940084,2582.6,2581.8,3.87314]
[1730865366501,3.29940084,2582.5,2581.6,4.64066]
[1730865366707,3.30337787,2582.4,2581.9,3.87311]
[1730865367217,3.30337787,2582.5,2581.9,3.87311]
[1730865367426,3.30337787,2582.5,2582.1,3.8728]
[1730865367619,0.55,2582.4,2581.9,3.87311]
[1730865367818,0.55,2582.2,2581.6,3.87341]
[1730865368029,4.08807787,2582.3,2582.1,3.87281]
[1730865368235,0.7847,2582.3,2582.1,3.87269]
[1730865368603,0.7847,2582.3,2581.9,3.87307]
[1730865368804,0.7847,2582.3,2581.8,3.87324]
[1730865369108,1.27021848,2582.3,2581.7,3.87334]
[1730865369309,1.27021848,2582.3,2581.5,3.87368]
[1730865369522,1.27021848,2582.3,2581.7,3.87339]
[1730865369708,8.44615635,2582.3,2581.5,3.87368]
[1730865370031,3.85337787,2582.2,2581.5,3.8737]
[1730865370235,0.55,2582.0,2581.5,3.8737]
[1730865370618,0.55,2582.0,2581.3,4.64116]
[1730865370820,4.42296,2582.0,2581.3,4.64108]
[1730865371015,4.42296,2582.0,2581.4,3.87385]
[1730865371325,0.55,2582.0,2581.4,3.87385]
[1730865371646,0.47529935,2582.0,2581.7,3.87338]
[1730865372054,3.27022407,2582.0,2581.3,3.87395]
[1730865372259,0.7847,2581.8,2581.3,3.87395]
[1730865372552,0.7847,2581.8,2581.1,3.87431]
[1730865372750,0.7847,2581.8,2581.5,3.87371]
[1730865372954,1.19019241,2581.8,2581.5,3.87371]
[1730865373121,3.98511713,2581.8,2581.3,3.87389]
[1730865373319,3.98511713,2581.8,2581.2,3.87409]
[1730865373320,5.06346241,2581.8,2581.2,3.87409]
[1730865373540,7.85838713,2581.8,2581.2,3.87409]
[1730865373817,3.98511713,2581.8,2581.2,3.87409]
[1730865374142,3.34492472,2581.6,2580.9,3.87453]
[1730865374346,3.87387,2581.4,2580.9,3.87453]
[1730865374657,7.45984472,2581.5,2580.9,3.87453]
[1730865374857,2.79492472,2581.4,2580.4,0.7971]
[1730865375166,2.79492472,2581.4,2580.0,0.61115827]
[1730865375167,3.87503,2580.7,2580.1,3.87577]
[1730865375319,2.79492472,2580.6,2580.1,3.87571]
[1730865375660,2.79492472,2580.7,2580.1,3.87571]
[1730865375859,6.66987472,2580.7,2580.0,0.7971]
[1730865376025,2.79492472,2580.6,2580.0,3.87593]
[1730865376227,2.79492472,2580.6,2579.9,3.87601]
[1730865376228,2.79492472,2580.6,2580.2,3.87566]
[1730865376574,2.79492472,2580.5,2580.1,7.75149]
[1730865376736,2.79492472,2580.6,2580.1,7.75149]
[1730865376939,2.79492472,2580.6,2580.1,3.87571]
[1730865377263,2.79492472,2580.5,2580.1,3.87571]
[1730865377423,3.87136998,2580.6,2580.1,3.87571]
[1730865377626,3.87136998,2580.6,2580.1,3.8757]
[1730865377834,2.79492472,2580.5,2580.1,3.8757]
[1730865378271,3.87136998,2580.6,2580.1,3.8757]
[1730865378780,3.87136998,2580.6,2580.3,3.87551]
[1730865378921,2.79492472,2580.5,2580.1,7.75141]
[1730865379122,2.79492472,2580.6,2580.1,3.8757]
[1730865379321,2.79492472,2580.6,2580.4,3.87531]
[1730865379521,2.79492472,2580.7,2580.3,3.8755]
[1730865379761,3.58612472,2580.8,2580.3,3.8755]
[1730865379933,2.79492472,2580.7,2580.3,3.87542]
[1730865380133,3.58612472,2580.8,2580.4,3.87535]
[1730865380466,2.79344417,2581.1,2580.7,3.87479]
[1730865380629,1.26166935,2581.1,2580.5,3.87514]
[1730865380971,2.79344417,2581.0,2580.3,3.87546]
[1730865381127,2.79344417,2580.8,2580.3,3.87546]
[1730865381432,3.87471,2580.9,2580.3,3.87546]
[1730865381433,6.66815417,2580.9,2580.3,3.87546]
[1730865381637,2.79344417,2580.8,2580.6,3.87497]
[1730865381866,2.79344417,2581.0,2580.6,3.87497]
[1730865382162,2.79344417,2581.0,2580.6,3.87496]
[1730865382361,2.79344417,2580.8,2580.1,3.87579]
[1730865382523,3.87496,2580.7,2580.1,3.87579]
[1730865382726,2.79344417,2580.7,2579.8,0.7971]
[1730865382935,2.79344417,2580.7,2579.9,0.467344]
[1730865383234,2.79344417,2580.8,2580.3,3.87542]
[1730865383434,2.79344417,2580.7,2580.3,3.87542]
[1730865383647,2.79344417,2580.8,2580.5,3.87509]
[1730865383878,2.79344417,2580.9,2580.7,3.87491]
[1730865384170,2.79344417,2580.9,2580.5,3.87509]
[1730865384870,2.80690691,2580.9,2580.7,3.8749]
[1730865385274,2.80690691,2580.9,2580.7,3.87481]
[1730865385750,2.80690691,2580.8,2580.7,3.87481]
[1730865385942,2.80690691,2580.9,2580.7,3.87481]
[1730865386142,2.80690691,2580.8,2580.7,3.87481]
[1730865386330,2.80690691,2580.9,2580.7,3.87481]
[1730865386531,2.80690691,2580.8,2580.7,3.87481]
[1730865387277,2.80690691,2580.8,2580.5,3.87515]
[1730865387658,2.80690691,2580.8,2580.5,3.87512]
[1730865387852,2.80690691,2580.8,2580.4,3.87536]
[1730865388178,3.80661848,2580.8,2580.3,3.8755]
[1730865388496,2.80690691,2580.7,2580.3,3.8755]
[1730865388855,2.80690691,2580.7,2580.2,0.07750655]
[1730865389055,2.80690691,2580.8,2580.5,3.87515]
[1730865389247,2.80690691,2580.9,2580.5,3.87515]
[1730865389582,2.80657188,2580.8,2580.5,3.87515]
[1730865389802,2.80657188,2580.9,2580.6,3.87506]
[1730865389959,2.80657188,2581.0,2580.9,3.87461]
[1730865390159,2.80657188,2581.0,2580.8,3.87476]
[1730865390499,2.80657188,2581.1,2580.8,3.87476]
[1730865390797,2.80657188,2581.1,2580.8,7.74932]
[1730865391304,2.80657188,2581.1,2580.8,3.87465]
[1730865391600,2.80657188,2581.1,2580.6,3.87503]
[1730865391772,2.80657188,2581.1,2580.7,3.87491]
[1730865391967,2.80657188,2581.1,2580.6,3.87503]
[1730865392199,2.80657188,2581.1,2580.8,3.87475]
[1730865392397,3.49787537,2581.1,2580.8,3.87475]
[1730865392762,0.69130349,2581.1,2580.8,3.87475]
[1730865393100,2.80657188,2581.1,2580.8,3.87475]
[1730865393764,3.59777188,2581.2,2580.6,3.87498]
[1730865393966,2.80657188,2581.1,2580.8,3.87464]
[1730865394190,2.79877724,2581.1,2580.8,3.87464]
[1730865394702,2.79877724,2581.1,2581.0,3.87446]
[1730865395664,2.79877724,2581.1,2581.0,3.87438]
[1730865395866,2.79877724,2581.2,2581.0,3.87438]
[1730865396094,2.79877724,2581.2,2580.9,3.8746]
[1730865396095,2.79877724,2581.2,2581.1,3.87431]
[1730865397691,2.79877724,2581.2,2580.9,3.8746]
[1730865398205,2.79877724,2581.2,2580.7,3.87481]
[1730865398413,2.79877724,2580.9,2580.7,3.87481]
[1730865398570,2.79877724,2580.9,2580.4,3.87534]
[1730865398905,2.79877724,2580.8,2580.3,4.7045]
[1730865399293,6.67362724,2580.8,2580.1,3.87573]
[1730865399495,3.54315996,2580.7,2580.1,3.87573]
[1730865399670,3.54315996,2580.7,2580.2,3.87564]
[1730865400070,2.79877724,2580.6,2580.2,3.87564]
[1730865400871,2.79877724,2580.6,2580.0,1.41668981]
[1730865401103,2.79877724,2580.6,2580.4,3.87528]
[1730865401313,2.79877724,2580.6,2580.2,7.75114]
[1730865401486,2.79877724,2580.6,2580.3,3.87546]
[1730865402097,2.79877724,2580.6,2580.4,3.87535]
[1730865402488,2.79877724,2580.7,2580.4,3.87535]
[1730865402687,2.79877724,2580.7,2580.6,3.87506]
[1730865403521,2.80619586,2580.7,2580.5,3.87517]
[1730865403713,2.80619586,2580.8,2580.4,3.87526]
[1730865403885,2.80619586,2580.8,2580.4,3.87525]
[1730865404078,3.31481886,2581.0,2580.4,3.87525]
[1730865404079,2.80619586,2580.7,2580.4,3.87525]
[1730865404388,2.80619586,2580.7,2580.6,3.87506]
[1730865404585,2.80619586,2580.7,2580.4,3.87525]
[1730865404789,2.80619586,2580.7,2580.5,3.87521]
[1730865405311,2.80619586,2580.6,2580.5,3.87521]
[1730865405613,2.80619586,2580.7,2580.6,3.87506]
[1730865406907,3.31481886,2580.9,2580.4,3.97028603]
[1730865407217,2.80710011,2580.7,2580.4,3.97028603]
[1730865407385,2.80710011,2580.7,2580.4,3.87536]
[1730865407589,2.80710011,2580.7,2580.4,7.75062]
[1730865407903,2.80710011,2580.7,2580.4,3.87526]
[1730865408209,2.80716665,2580.7,2580.4,3.87526]
[1730865408605,3.31596561,2580.9,2580.5,3.87521]
[1730865408606,2.80716665,2580.6,2580.5,3.87521]
[1730865408778,2.80716665,2580.6,2580.4,3.87526]
[1730865408979,2.80716665,2580.6,2580.4,7.75053]
[1730865409581,2.80716665,2580.7,2580.4,3.87526]
[1730865410038,2.80716665,2580.6,2580.4,3.87526]
[1730865410201,2.80716665,2580.5,2580.4,3.87526]
[1730865410884,7.833761,2581.0,2580.4,3.87526]
[1730865410885,2.80716665,2580.6,2580.4,3.87526]
[1730865411186,2.80716665,2580.5,2580.4,3.87526]
[1730865412232,3.31596561,2580.6,2580.3,3.87551]
[1730865412413,3.87561,2580.3,2579.6,3.87652]
[1730865412587,3.87561,2580.3,2579.4,0.7953]
[1730865412588,2.822449,2579.8,2579.4,4.67206]
[1730865412792,2.822449,2579.7,2579.4,8.54883]
[1730865412999,2.82303499,2579.5,2579.4,0.7953]
[1730865413204,2.82303499,2579.6,2579.4,4.67217]
[1730865413386,2.82303499,2579.6,2579.5,3.87672]
[1730865413824,3.33401788,2579.8,2579.6,7.75302]
[1730865414127,3.33401788,2579.8,2579.6,7.75292]
[1730865414723,3.34696075,2579.8,2579.7,3.87641]
[1730865414932,3.34696075,2579.9,2579.7,3.87641]
[1730865415139,3.34696075,2579.8,2579.7,3.87641]
[1730865415299,3.87562,2580.3,2579.7,3.87641]
[1730865415300,3.959281,2579.9,2579.7,3.87641]
[1730865415500,3.959281,2579.9,2579.7,3.87633]
[1730865415800,3.959281,2580.0,2579.8,3.87621]
[1730865415999,3.959281,2580.1,2579.8,3.87621]
[1730865416298,3.34131826,2579.9,2579.8,4.65923117]
[1730865416506,3.34131826,2580.0,2579.8,4.65923117]
[1730865416734,2.39626292,2580.6,2580.5,4.67051]
[1730865416939,0.75,2581.4,2580.7,3.8749]
[1730865416940,1.549959,2581.3,2580.7,3.8749]
[1730865417357,1.549959,2581.3,2580.7,4.86691168]
[1730865418048,1.549959,2581.3,2580.7,0.99201168]
[1730865418264,1.549959,2581.3,2580.7,4.86686168]
[1730865418554,1.549959,2581.3,2580.7,0.99201168]
[1730865418760,1.549959,2581.3,2580.4,4.99815921]
[1730865418761,3.87436,2581.1,2580.4,1.12283921]
[1730865418929,3.87458,2581.0,2580.2,3.87562]
[1730865419247,0.8122,2580.9,2580.0,4.65696]
[1730865419555,0.468678,2580.8,2580.0,4.65696]
[1730865419727,4.01086427,2580.8,2580.1,3.87581]
[1730865419934,4.01086427,2580.8,2580.3,3.87546]
[1730865420148,4.01086427,2580.7,2580.3,3.87546]
[1730865420459,4.82306427,2580.9,2580.5,3.87511]
[1730865421090,4.01086427,2581.0,2580.7,3.87491]
[1730865421221,4.01086427,2581.0,2580.5,3.87521]
[1730865421423,7.88519427,2581.1,2580.0,0.87974797]
[1730865421613,4.82306427,2580.8,2580.2,3.87566]
[1730865421813,4.8806357,2580.7,2580.1,3.8758]
[1730865422010,4.68755,2580.5,2579.7,3.87638]
[1730865422215,8.69841427,2580.5,2579.8,3.87625]
[1730865422522,4.01086427,2580.4,2579.9,3.87611]
[1730865422715,4.01086427,2580.4,2579.8,3.87612]
[1730865423026,4.01086427,2580.4,2579.9,3.87611]
[1730865423350,4.01086427,2580.3,2580.0,3.87596]
[1730865423647,4.01086427,2580.3,2579.5,0.87801428]
[1730865423813,4.01086427,2580.4,2579.6,0.47648143]
[1730865424019,4.01086427,2580.3,2579.6,0.47648143]
[1730865424845,4.01086427,2580.3,2579.8,3.87614]
[1730865425165,4.01086427,2580.5,2579.9,0.781]
[1730865425382,4.01086427,2580.5,2580.0,0.465714]
[1730865425537,4.01086427,2580.5,2579.9,0.781]
[1730865426125,4.01086427,2580.4,2579.9,0.781]
[1730865426359,4.01086427,2580.5,2579.9,0.781]
[1730865428354,7.88608427,2580.5,2579.9,0.781]
[1730865428679,3.87591,2580.1,2579.3,0.781]
[1730865429175,4.01086427,2580.2,2579.3,0.781]
[1730865429379,4.01086427,2580.1,2579.3,0.781]
[1730865430373,4.01086427,2580.1,2579.4,0.07752424]
[1730865430573,4.01086427,2580.1,2579.3,6.20764407]
[1730865430781,4.01086427,2580.1,2579.4,1.05283304]
[1730865431086,4.01086427,2580.2,2579.4,1.05283304]
[1730865431744,4.01086427,2580.1,2579.4,1.05283304]
[1730865431935,7.88655427,2580.2,2579.4,1.05283304]
[1730865432964,4.01086427,2580.2,2579.4,1.05283304]
[1730865433163,4.01086427,2580.2,2579.5,1.12332986]
[1730865433366,4.01086427,2580.2,2579.5,1.2008463]
[1730865434046,4.01086427,2580.2,2579.6,0.781]
[1730865434242,4.01086427,2580.4,2579.6,0.781]
[1730865434442,4.01086427,2580.5,2579.8,3.87622]
[1730865434643,4.01086427,2580.5,2579.9,0.387622]
[1730865435148,7.88614427,2580.5,2579.6,4.65746]
[1730865435585,3.87541,2580.4,2579.6,4.65746]
[1730865435883,7.88608427,2580.5,2579.6,4.65746]
[1730865436245,3.87537,2580.4,2579.6,0.781]
[1730865436880,4.01086427,2580.5,2579.6,0.781]
[1730865437082,3.8758,2580.2,2579.6,0.781]
[1730865437378,3.8758,2580.2,2579.7,0.07752005]
[1730865437564,3.87553,2580.3,2579.6,0.781]
[1730865437776,7.88639427,2580.3,2579.6,0.781]
[1730865437950,7.88628427,2580.4,2579.6,4.65756]
[1730865438145,7.88628427,2580.4,2579.7,0.465756]
[1730865438483,3.87554,2580.3,2579.6,0.781]
[1730865438660,7.88628427,2580.4,2579.6,0.781]
[1730865439181,11.76178427,2580.4,2579.6,0.781]
[1730865439385,7.88628427,2580.4,2579.6,0.781]
[1730865439846,7.88628427,2580.4,2579.6,0.87586922]
[1730865440047,4.01086427,2580.4,2579.7,4.35166792]
[1730865440256,4.01086427,2580.4,2579.7,0.47525792]
[1730865440551,4.01086427,2580.2,2579.7,0.47525792]
[1730865440749,4.01086427,2580.2,2579.6,0.87586922]
[1730865440985,4.01086427,2580.3,2579.6,0.87586922]
[1730865441197,4.01086427,2580.3,2579.6,4.75236922]
[1730865441396,4.01086427,2580.3,2579.6,0.87586922]
[1730865441548,4.01086427,2580.3,2579.7,0.47524792]
[1730865442987,4.01086427,2580.4,2579.9,0.781]
[1730865443283,3.87467,2580.9,2579.9,0.781]
[1730865443284,4.01086427,2580.5,2579.9,0.791]
[1730865443585,4.01086427,2580.7,2579.9,4.65704]
[1730865443818,4.01086427,2580.6,2579.9,0.781]
[1730865444027,3.87541,2580.4,2579.9,0.781]
[1730865444189,4.01086427,2580.4,2579.9,0.781]
[1730865444610,4.01086427,2580.5,2579.9,0.781]
[1730865444914,3.87427,2581.2,2580.4,0.781]
[1730865445128,6.236527,2581.3,2580.4,0.781]
[1730865445129,3.87462,2580.9,2580.5,0.465641]
[1730865445335,0.781,2581.2,2580.4,0.781]
[1730865445630,4.68632,2581.3,2580.4,0.781]
[1730865445978,10.110535,2581.3,2580.4,0.781]
[1730865446181,3.87417,2581.2,2580.4,0.781]
[1730865446381,3.87432,2581.1,2580.4,0.781]
[1730865446618,6.236375,2581.3,2580.4,0.781]
[1730865446924,0.60672289,2581.5,2580.4,0.781]
[1730865447221,0.60672289,2581.5,2579.0,0.781]
[1730865447222,0.8122,2580.1,2579.0,0.781]
[1730865447443,0.03598086,2580.0,2579.0,0.781]
[1730865447727,0.03598086,2580.0,2579.2,3.87714]
[1730865447728,3.3468515,2579.6,2579.2,3.87714]
[1730865447883,3.3468515,2579.6,2579.4,0.781]
[1730865448090,3.3468515,2579.7,2579.4,4.65786]
[1730865448289,3.3468515,2579.7,2579.4,0.781]
[1730865448484,3.3468515,2579.7,2579.4,4.65786]
[1730865449189,3.3468515,2579.7,2579.4,0.781]
[1730865449420,3.3468515,2579.6,2579.5,0.5045724]
[1730865449622,3.3468515,2579.7,2579.5,0.5045724]
[1730865450629,3.3468515,2579.7,2579.4,0.781]
[1730865451133,3.3468515,2579.5,2579.4,0.781]
[1730865451558,4.01692895,2579.7,2579.4,0.781]
[1730865452047,3.34406831,2579.5,2579.4,0.781]
[1730865453447,3.34406831,2579.6,2579.4,4.65787]
[1730865453760,3.87551,2580.4,2579.5,0.465787]
[1730865453761,3.34406831,2579.8,2579.5,0.465787]
[1730865454427,3.34406831,2579.9,2579.5,0.465787]
[1730865454653,0.03598086,2580.3,2579.5,0.465787]
[1730865454654,3.34406831,2580.0,2579.6,3.87656]
[1730865454855,3.34406831,2579.9,2579.6,3.87656]
[1730865455028,3.34406831,2580.0,2579.6,3.87656]
[1730865455231,3.34406831,2580.0,2579.6,4.7765807]
[1730865455729,3.34406831,2580.0,2579.4,0.781]
[1730865455963,3.34406831,2579.8,2579.4,0.781]
[1730865456119,3.34406831,2579.7,2579.4,0.781]
[1730865456325,3.87572,2580.2,2579.4,0.781]
[1730865456326,3.34406831,2579.8,2579.4,0.781]
[1730865456551,3.34152887,2579.8,2579.4,1.634495]
[1730865456753,4.01692895,2580.0,2579.4,0.781]
[1730865456754,3.34152887,2579.7,2579.4,0.781]
[1730865457823,4.01692895,2579.7,2579.0,0.8059]
[1730865458024,3.33745078,2579.4,2579.0,0.8059]
[1730865458434,2.82357641,2579.1,2579.0,0.8059]
[1730865459126,2.82357641,2579.2,2579.0,0.8059]
[1730865459528,2.82357641,2579.2,2578.0,0.1256361]
[1730865459529,3.8788,2578.2,2578.0,0.1256361]
[1730865459839,2.82132175,2578.1,2578.0,0.1256361]
[1730865460033,2.82095409,2578.1,2578.0,0.1256361]
[1730865460240,2.82095409,2578.2,2578.0,4.46974076]
[1730865460466,2.82095409,2578.4,2578.1,3.87871]
[1730865460630,2.82095409,2578.3,2578.0,0.59077076]
[1730865460965,3.4241217,2578.7,2578.2,0.8059]
[1730865461125,3.32716491,2578.7,2578.2,0.8059]
[1730865461319,3.42411398,2578.8,2578.2,1.33346308]
[1730865461521,0.09694907,2578.8,2578.2,1.33346308]
[1730865461741,3.32716491,2579.0,2578.5,3.87811]
[1730865462063,3.42410198,2579.2,2578.5,3.87811]
[1730865462229,0.09693707,2579.2,2578.7,3.87789]
[1730865462429,3.97410707,2579.2,2578.5,3.87811]
[1730865462632,7.30127198,2579.2,2578.4,3.87837]
[1730865462952,3.87747,2579.0,2578.4,3.87837]
[1730865463132,3.97441426,2579.0,2578.4,3.87837]
[1730865463332,7.30157917,2579.0,2578.2,8.56309]
[1730865463533,3.42410917,2579.0,2578.2,4.68444]
[1730865463734,2.64500616,2579.1,2578.5,3.8781]
[1730865463933,2.54806191,2579.1,2578.7,3.87784]
[1730865464240,1.29227723,2579.2,2578.7,3.87784]